bitfinex/quotes_ETHUSD_20240715
["timestamp","ask_amount","ask_price","bid_price","bid_amount"]
[1721011545500,3.0,3334.5,3333.7,0.61110372]
[1721011545837,2.2903,3334.6,3333.7,0.61110372]
[1721011546637,2.4082,3335.2,3333.8,2.69962]
[1721011546830,2.4082,3335.2,3333.8,3.85667753]
[1721011547126,2.4082,3335.2,3333.8,3.91764953]
[1721011547332,2.4082,3335.2,3333.8,6.67725456]
[1721011547534,2.4082,3335.2,3334.3,2.69916]
[1721011547829,0.31342263,3334.5,3334.4,3.31000444]
[1721011548243,2.4082,3335.2,3334.4,3.31000444]
[1721011548405,0.3134919,3334.5,3334.4,3.31000444]
[1721011548613,2.64902,3335.2,3334.4,0.61087444]
[1721011548816,3.0,3335.1,3334.4,0.61087444]
[1721011549040,0.31349053,3334.5,3334.4,0.06087444]
[1721011549229,3.0,3335.1,3334.4,0.06087444]
[1721011549426,0.31348627,3334.5,3334.1,2.69937]
[1721011549626,3.564902,3335.1,3334.2,0.6108217]
[1721011550025,3.564902,3335.1,3334.2,0.0608217]
[1721011550026,0.31348506,3334.4,3334.2,0.0608217]
[1721011550241,3.564902,3335.1,3333.7,2.69969]
[1721011550442,0.31349113,3334.4,3334.3,0.0608252]
[1721011550627,3.564902,3335.1,3333.8,0.55]
[1721011550827,0.9748922,3335.0,3333.9,0.06084448]
[1721011551035,0.31349898,3334.4,3333.7,2.6997]
[1721011551230,0.9748922,3335.0,3333.8,0.6108493]
[1721011551448,0.31349824,3334.3,3333.8,0.6108493]
[1721011551757,0.9748922,3335.0,3333.8,0.6108493]
[1721011551959,0.31349803,3334.2,3333.8,0.6108493]
[1721011552119,0.69479942,3334.9,3333.8,3.24954]
[1721011552430,0.69479942,3334.9,3333.9,2.76036448]
[1721011552625,0.69479942,3334.9,3334.0,3.24943]
[1721011552824,0.69479942,3334.9,3334.1,0.06087019]
[1721011553051,0.36947994,3334.8,3334.2,0.55]
[1721011553620,0.36947994,3334.8,3334.3,0.06086055]
[1721011553849,0.36947994,3334.8,3333.5,2.6998]
[1721011554150,0.36947994,3334.8,3334.4,0.06085573]
[1721011554460,0.36947994,3334.8,3333.6,0.55]
[1721011554751,0.36947994,3334.8,3333.5,0.55]
[1721011554945,0.36947994,3334.8,3333.3,0.55]
[1721011555144,0.36947994,3334.8,3333.7,2.69963]
[1721011555343,0.36947994,3334.8,3333.8,0.55]
[1721011555546,0.36947994,3334.8,3333.8,0.61068288]
[1721011555839,0.36947994,3334.8,3333.8,3.31029288]
[1721011556162,3.0,3335.1,3333.9,2.69953]
[1721011556367,2.4082,3335.2,3334.1,2.69936]
[1721011556730,2.4082,3335.2,3334.2,0.61069479]
[1721011556931,2.4082,3335.2,3334.2,3.30998479]
[1721011558075,3.0,3335.6,3334.3,2.69917]
[1721011558273,0.84448,3335.5,3334.4,0.55]
[1721011558476,0.84448,3335.5,3334.4,0.61066851]
[1721011558638,0.84448,3335.5,3334.4,3.30978851]
[1721011560073,0.84448,3335.5,3334.4,0.61066851]
[1721011560465,0.84448,3335.5,3334.4,3.30978851]
[1721011560639,0.928928,3335.4,3334.5,2.69905]
[1721011560974,0.928928,3335.4,3334.6,0.61065887]
[1721011561386,0.928928,3335.4,3334.6,3.30961887]
[1721011561790,0.928928,3335.4,3334.6,0.61065887]
[1721011562152,0.31348196,3335.3,3334.6,0.61065887]
[1721011562357,0.31348196,3335.3,3334.6,0.06065887]
[1721011562358,0.73772296,3335.3,3334.6,0.06065887]
[1721011562573,0.73772296,3335.3,3334.2,2.69926]
[1721011562772,0.73772296,3335.3,3334.3,0.55]
[1721011563091,0.73772296,3335.3,3334.3,0.06067333]
[1721011563392,0.73772296,3335.3,3334.5,2.69899]
[1721011563593,0.73772296,3335.3,3334.6,0.55]
[1721011563798,0.1666651,3335.2,3334.6,0.61065887]
[1721011563954,0.1666651,3335.2,3334.6,0.06065887]
[1721011564351,0.1666651,3335.2,3334.1,2.69936]
[1721011564561,0.1666651,3335.2,3334.7,0.06065406]
[1721011564766,0.18333161,3335.1,3334.2,3.24927]
[1721011565088,0.73772296,3335.3,3334.5,2.69898]
[1721011565294,0.73772296,3335.3,3334.6,0.55]
[1721011565586,0.73772296,3335.3,3334.6,0.61065887]
[1721011565787,0.73772296,3335.3,3334.6,0.06065887]
[1721011566193,0.73772296,3335.3,3334.0,2.6994]
[1721011566494,0.1666651,3335.2,3334.2,2.69929]
[1721011566691,0.1666651,3335.2,3334.3,0.55]
[1721011566911,0.1666651,3335.2,3334.5,2.69897]
[1721011567056,0.1666651,3335.2,3334.6,0.55]
[1721011567257,0.31348196,3335.3,3334.7,0.05997344]
[1721011567457,0.31348196,3335.3,3334.9,2.69872]
[1721011567762,0.31348196,3335.3,3335.0,0.55]
[1721011567989,0.31348196,3335.3,3335.0,0.61045455]
[1721011570504,0.31348196,3335.3,3335.0,0.06045455]
[1721011570884,0.31348196,3335.3,3334.5,0.05997364]
[1721011571235,0.31348196,3335.3,3334.6,0.55]
[1721011571387,0.31348196,3335.3,3334.7,0.059967]
[1721011571588,0.31348196,3335.3,3334.8,0.55]
[1721011572099,0.31348196,3335.3,3334.9,0.06042611]
[1721011572306,0.31348196,3335.3,3334.8,0.55]
[1721011572307,0.31348196,3335.3,3335.0,0.55]
[1721011572625,0.31348196,3335.3,3335.0,0.06042129]
[1721011573027,0.31348196,3335.3,3335.1,0.06041647]
[1721011573321,0.31348196,3335.3,3334.8,0.55]
[1721011573480,0.31348196,3335.3,3335.2,0.06041165]
[1721011573685,0.31348196,3335.3,3334.7,3.24889]
[1721011573881,0.31348196,3335.3,3335.2,0.06041165]
[1721011574188,0.31348196,3335.3,3335.2,3.24848]
[1721011574407,0.31348196,3335.3,3335.2,3.30889165]
[1721011574582,0.31348196,3335.3,3335.2,3.90963582]
[1721011575220,0.31348196,3335.3,3335.2,1.21115582]
[1721011575737,0.31348196,3335.3,3335.2,0.06041165]
[1721011576086,0.31348196,3335.3,3334.3,2.3562]
[1721011576592,0.31348196,3335.3,3334.7,2.69888]
[1721011577030,0.31348196,3335.3,3334.8,0.06043092]
[1721011577189,0.31348196,3335.3,3334.9,3.24872]
[1721011577390,0.31348196,3335.3,3335.0,3.023492]
[1721011577592,0.31348196,3335.3,3335.1,0.55]
[1721011577901,0.31348196,3335.3,3335.2,0.06041165]
[1721011579718,0.31348196,3335.3,3334.2,2.69926]
[1721011579928,0.31348196,3335.3,3335.2,0.06041165]
[1721011580139,0.31348196,3335.3,3334.4,2.69905]
[1721011580301,0.31348196,3335.3,3335.2,0.06029109]
[1721011580508,0.31348196,3335.3,3334.0,2.69941]
[1721011580509,2.88423016,3335.3,3334.0,2.69941]
[1721011580813,2.649,3335.2,3333.7,2.69967]
[1721011581015,5.649,3335.2,3333.5,2.69985]
[1721011581244,5.649,3335.2,3333.8,0.06035855]
[1721011581552,5.649,3335.2,3333.9,0.06035373]
[1721011581708,0.85332302,3335.1,3333.6,2.69977]
[1721011581908,0.85332302,3335.1,3334.0,0.06036346]
[1721011582143,0.85332302,3335.1,3333.4,2.69993]
[1721011582351,0.85332302,3335.1,3334.1,0.06050627]
[1721011582648,2.432,3335.0,3333.3,2.69997]
[1721011582832,3.45905532,3335.0,3333.5,2.69986]
[1721011583039,3.0,3334.9,3333.4,0.06054209]
[1721011583244,3.0,3334.9,3334.1,2.69937]
[1721011583556,0.31346252,3334.9,3334.2,0.06050353]
[1721011583707,3.88800877,3334.9,3334.2,0.06050353]
[1721011587337,3.88800877,3334.9,3334.2,2.75979353]
[1721011587584,3.31346252,3334.9,3334.3,0.55]
[1721011588086,13.21346252,3334.9,3334.4,0.06046061]
[1721011589268,13.21346252,3334.9,3334.1,2.69937]
[1721011589571,13.21346252,3334.9,3334.5,0.0604558]
[1721011589782,13.21346252,3334.9,3334.2,0.55]
[1721011590000,14.77800877,3334.9,3334.6,0.06045098]
[1721011590140,14.77800877,3334.9,3334.2,0.55]
[1721011590342,14.77800877,3334.9,3334.7,0.06064367]
[1721011590653,14.77800877,3334.9,3334.2,0.55]
[1721011590855,14.77800877,3334.9,3334.3,0.06066294]
[1721011591275,13.21346252,3334.9,3334.3,0.06066294]
[1721011592960,13.21346252,3334.9,3333.9,2.69951]
[1721011593166,13.21346252,3334.9,3334.4,0.06065813]
[1721011593492,13.21346252,3334.9,3334.5,0.06065331]
[1721011593686,13.21346252,3334.9,3334.0,0.55]
[1721011593902,1.56454625,3334.8,3334.6,0.06064849]
[1721011594102,1.56454625,3334.8,3334.0,0.55]
[1721011594421,1.56454625,3334.8,3334.7,0.06064367]
[1721011594614,1.56454625,3334.8,3334.0,0.55]
[1721011594912,1.56454625,3334.8,3334.1,0.06067258]
[1721011595095,13.21346252,3334.9,3334.1,0.06067258]
[1721011595096,1.72100088,3334.7,3334.1,0.06067258]
[1721011604238,1.72100088,3334.7,3332.9,2.70028]
[1721011604239,2.3798,3334.6,3334.2,0.05864119]
[1721011604450,2.651,3334.4,3334.2,0.05864119]
[1721011604599,2.651,3334.4,3333.1,2.76017745]
[1721011604600,5.3798,3334.6,3333.5,2.69981]
[1721011604919,10.21343481,3334.4,3333.6,0.05668362]
[1721011605107,10.21343481,3334.4,3333.9,2.69953]
[1721011605314,3.0,3334.3,3333.9,2.69953]
[1721011605533,3.0,3334.3,3333.7,2.69964]
[1721011605731,3.0,3334.3,3334.0,0.05674337]
[1721011605900,4.70924348,3334.3,3333.8,2.69961]
[1721011606099,4.70924348,3334.3,3334.1,0.05673855]
[1721011606350,4.70924348,3334.3,3333.9,0.55]
[1721011606529,4.70924348,3334.3,3334.2,0.05673373]
[1721011606746,4.70924348,3334.3,3333.9,0.55]
[1721011607059,4.70924348,3334.3,3334.2,0.05673373]
[1721011607220,4.70924348,3334.3,3333.9,0.55]
[1721011607741,4.70924348,3334.3,3334.0,0.05674337]
[1721011607742,1.49226783,3334.2,3334.0,0.05674337]
[1721011610996,1.49226783,3334.2,3332.7,2.76041964]
[1721011610997,1.49226783,3334.2,3333.1,2.70017]
[1721011611278,1.49226783,3334.2,3334.1,0.05489141]
[1721011611495,1.49226783,3334.2,3333.1,2.70017]
[1721011611789,1.47057026,3334.1,3333.2,0.05493481]
[1721011613480,1.47057026,3334.1,3333.3,0.55]
[1721011613984,1.47057026,3334.1,3333.4,0.05492516]
[1721011614146,1.47057026,3334.1,3333.5,0.55]
[1721011614689,1.47057026,3334.1,3333.2,0.55]
[1721011614982,1.47057026,3334.1,3333.3,0.05499239]
[1721011615191,1.47057026,3334.1,3333.4,0.55]
[1721011615487,1.47057026,3334.1,3333.5,2.69984]
[1721011615675,1.47057026,3334.1,3333.6,0.55]
[1721011615985,1.47057026,3334.1,3333.6,0.60494672]
[1721011617768,1.47057026,3334.1,3333.6,0.55]
[1721011618088,0.44705703,3334.0,3333.6,0.55]
[1721011618687,10.34705703,3334.0,3333.0,2.70025]
[1721011618859,3.0,3333.9,3333.1,0.55]
[1721011619050,3.0,3333.9,3333.1,0.60496459]
[1721011620394,0.31333882,3333.8,3333.1,3.30514459]
[1721011620897,1.67937841,3333.8,3333.1,3.30514459]
[1721011622151,1.67937841,3333.8,3333.1,0.60496459]
[1721011625611,2.4488,3333.7,3333.1,0.60496459]
[1721011625767,5.4488,3333.7,3333.1,0.60496459]
[1721011626979,5.4488,3333.7,3333.1,0.55]
[1721011627182,0.97791784,3333.6,3333.1,0.55]
[1721011627411,3.97791784,3333.6,3333.1,0.55]
[1721011627712,13.87791784,3333.6,3333.2,0.05510748]
[1721011627922,13.87791784,3333.6,3332.8,0.55]
[1721011628103,13.87791784,3333.6,3332.9,0.05512195]
[1721011628288,1.80060962,3333.5,3333.0,0.55]
[1721011628614,4.80060962,3333.5,3333.1,0.055156]
[1721011630008,4.80060962,3333.5,3333.2,0.55]
[1721011630009,3.0,3333.5,3333.2,0.55]
[1721011630308,9.9,3333.6,3333.3,2.69995]
[1721011630525,9.9,3333.6,3333.4,0.55]
[1721011630891,9.9,3333.6,3333.5,0.05327612]
[1721011631077,9.9,3333.6,3333.5,0.60327612]
[1721011633903,9.9,3333.6,3333.5,1.20360573]
[1721011634075,9.9,3333.6,3333.5,13.79935612]
[1721011634307,2.3782,3335.8,3333.9,2.7466]
[1721011634579,0.31334188,3336.3,3335.6,2.69813]
[1721011634785,0.31334188,3336.3,3335.9,2.69789]
[1721011634985,2.69711,3336.9,3336.0,0.55]
[1721011635223,3.01043795,3336.9,3336.0,0.60296509]
[1721011635425,0.31332795,3336.9,3336.0,0.60296509]
[1721011635598,2.9982178,3336.8,3336.0,0.60296509]
[1721011636093,3.0,3336.7,3336.0,0.60296509]
[1721011636516,3.0,3336.7,3336.0,0.05296509]
[1721011636875,2.69746,3336.5,3336.0,0.05296509]
[1721011636989,3.0,3336.4,3335.1,2.69855]
[1721011637191,2.69768,3336.2,3336.1,0.05041813]
[1721011637494,2.69768,3336.2,3335.5,2.69824]
[1721011637495,3.0,3336.2,3335.5,2.69824]
[1721011637694,2.9982278,3336.8,3335.8,2.69793]
[1721011637695,0.3010278,3336.8,3335.8,2.69793]
[1721011637943,2.9982378,3336.8,3335.9,0.55]
[1721011638237,0.60085958,3336.7,3335.9,0.60045884]
[1721011638943,2.69747,3336.5,3335.9,0.05045884]
[1721011639308,3.29815958,3336.7,3335.6,2.69813]
[1721011639629,3.0,3336.6,3335.7,3.29850811]
[1721011640053,3.0,3336.6,3335.7,0.60045811]
[1721011640054,5.69736,3336.6,3335.7,0.60045811]
[1721011640336,2.69752,3336.4,3335.7,0.60045811]
[1721011640513,3.0,3336.3,3335.7,0.60045811]
[1721011640917,0.65992474,3336.5,3335.7,0.60045811]
[1721011641290,2.69754,3336.4,3335.7,0.60045811]
[1721011641630,3.0,3336.3,3335.7,0.60045811]
[1721011641821,0.3010278,3336.8,3335.7,0.60045811]
[1721011641822,0.3010278,3336.8,3335.8,0.05995263]
[1721011641999,0.31332795,3336.9,3336.2,2.69767]
[1721011642196,0.31332795,3336.9,3336.5,2.69742]
[1721011642734,0.31332795,3336.9,3336.6,0.6004355]
[1721011645218,0.31332795,3336.9,3336.6,0.55]
[1721011645545,0.31332795,3336.9,3336.5,0.55]
[1721011646219,0.91434874,3336.9,3336.5,0.55]
[1721011646423,3.0,3337.2,3336.5,2.69739]
[1721011646629,3.0,3337.2,3336.6,0.55]
[1721011646834,3.0,3337.2,3336.6,0.60036094]
[1721011649147,2.69695,3337.1,3336.6,0.55]
[1721011649345,2.69695,3337.1,3336.3,0.55]
[1721011649552,1.70530767,3337.0,3336.3,0.55]
[1721011649860,1.70530767,3337.0,3336.4,0.05037056]
[1721011650029,1.70530767,3337.0,3336.5,0.55]
[1721011650266,3.0,3337.2,3336.5,3.24742]
[1721011650463,0.31331673,3337.3,3336.6,2.80763442]
[1721011650775,0.31331673,3337.3,3336.8,2.69715]
[1721011650948,0.31331673,3337.3,3336.9,0.55]
[1721011651157,3.09,3337.5,3337.0,0.05007468]
[1721011651338,3.09,3337.5,3337.1,0.55]
[1721011651339,3.668647,3337.5,3337.1,0.55]
[1721011651543,3.668647,3337.5,3337.2,0.05006506]
[1721011651787,3.668647,3337.5,3336.9,3.24708]
[1721011651936,3.09,3337.5,3337.3,0.05006025]
[1721011652142,3.09,3337.5,3336.9,3.24708]
[1721011652402,3.09,3337.5,3337.1,2.69691]
[1721011652561,3.09,3337.5,3337.0,0.05007468]
[1721011652562,0.31322281,3337.7,3337.2,3.30671278]
[1721011652882,0.31322281,3337.7,3337.6,2.69654]
[1721011653087,2.69574,3338.6,3337.6,0.55]
[1721011653260,0.31317239,3338.2,3337.6,0.0499195]
[1721011653453,0.31317239,3338.2,3337.7,0.55]
[1721011653655,10.21317239,3338.2,3337.7,0.55]
[1721011653978,9.9,3338.2,3337.6,0.55]
[1721011654366,9.9,3338.2,3337.7,0.04984016]
[1721011654565,9.9,3338.2,3337.8,0.55]
[1721011654884,9.9,3338.2,3337.8,3.24638]
[1721011655044,9.9,3338.2,3337.9,0.0497909]
[1721011655241,9.9,3338.2,3338.0,0.55]
[1721011655449,11.159582,3338.2,3338.0,0.55]
[1721011655685,11.159582,3338.2,3338.1,0.04941282]
[1721011656197,11.159582,3338.2,3337.4,2.6967]
[1721011656347,13.855662,3338.2,3337.5,0.55]
[1721011656692,13.855662,3338.2,3337.6,0.04937686]
[1721011656887,1.3855662,3338.1,3337.7,0.55]
[1721011657189,1.3855662,3338.1,3337.8,0.04936725]
[1721011657190,2.69632,3337.9,3337.8,0.04936725]
[1721011657342,1.3855662,3338.1,3337.8,0.04936725]
[1721011657543,1.3855662,3338.1,3337.3,2.69677]
[1721011657803,1.3855662,3338.1,3337.1,2.69691]
[1721011657804,9.9,3338.2,3337.7,2.69644]
[1721011658152,9.9,3338.2,3337.8,0.04936725]
[1721011658353,9.9,3338.2,3337.8,0.05991103]
[1721011658548,9.9,3338.2,3338.0,5.13621]
[1721011658774,9.9,3338.2,3338.1,5.99153968]
[1721011659119,9.9,3338.2,3338.1,6.89568438]
[1721011659298,3.09,3339.0,3338.1,6.89568438]
[1721011659299,3.09,3339.0,3338.6,2.69567]
[1721011659603,12.99,3339.0,3338.7,0.04923084]
[1721011659972,12.99,3339.0,3338.8,0.55]
[1721011660272,12.99,3339.0,3338.8,0.04922603]
[1721011660273,9.9,3339.0,3338.8,0.04922603]
[1721011660681,9.9,3339.0,3338.8,5.38998007]
[1721011660874,0.47024236,3341.3,3339.5,2.69499]
[1721011660875,2.81374236,3341.3,3339.5,2.69499]
[1721011661129,0.31317113,3341.1,3339.3,0.05987436]
[1721011661373,2.651,3341.0,3339.4,0.59901099]
[1721011661583,2.651,3341.0,3339.4,0.65889029]
[1721011661813,0.29641711,3340.9,3339.4,0.93442502]
[1721011662028,2.651,3340.6,3339.4,0.59901099]
[1721011662173,0.29641711,3340.9,3339.4,0.59901099]
[1721011662174,0.29641711,3340.9,3339.7,2.69484]
[1721011662376,0.31317113,3341.1,3339.8,0.55]
[1721011662613,0.31317113,3341.1,3339.8,0.59885116]
[1721011662924,0.31317113,3341.1,3339.8,0.04885116]
[1721011663089,3.52,3340.8,3339.8,0.04885116]
[1721011663292,3.0,3340.7,3339.1,2.69533]
[1721011663480,0.652,3340.6,3339.2,0.55]
[1721011663690,0.652,3340.6,3339.2,0.59887172]
[1721011664611,3.09,3340.4,3339.2,0.59887172]
[1721011664918,3.0,3340.3,3339.2,0.04887172]
[1721011665084,1.84326,3340.2,3339.2,0.04887172]
[1721011665415,1.84326,3340.2,3338.7,2.69561]
[1721011665592,1.84326,3340.2,3338.9,2.69549]
[1721011666016,1.84326,3340.2,3339.0,0.59890407]
[1721011666897,1.84326,3340.2,3339.0,0.04890407]
[1721011667100,2.135326,3340.1,3339.0,0.04890407]
[1721011667299,2.135326,3340.1,3338.6,2.69572]
[1721011667493,2.135326,3340.1,3339.1,0.04870479]
[1721011667689,2.135326,3340.1,3338.7,0.55]
[1721011667888,2.135326,3340.1,3339.2,0.04869998]
[1721011668114,0.8655326,3340.0,3338.7,3.24565]
[1721011668283,3.8655326,3340.0,3338.7,3.24565]
[1721011668485,13.7655326,3340.0,3338.8,0.04873782]
[1721011668693,13.7655326,3340.0,3338.9,0.55]
[1721011669026,13.7655326,3340.0,3339.0,0.04873234]
[1721011669217,1.37655326,3339.9,3339.0,0.04873234]
[1721011669523,1.37655326,3339.9,3338.9,0.55]
[1721011669826,1.37655326,3339.9,3339.0,0.04873648]
[1721011670024,1.37655326,3339.9,3338.7,3.24565]
[1721011670208,10.7655326,3340.0,3339.1,0.04873167]
[1721011670381,10.7655326,3340.0,3339.2,0.55]
[1721011670590,10.7655326,3340.0,3339.2,0.04869378]
[1721011670887,10.7655326,3340.0,3338.7,2.69564]
[1721011671089,1.07655326,3339.9,3338.8,0.55]
[1721011671319,1.07655326,3339.9,3338.8,0.598713]
[1721011673325,1.07655326,3339.9,3338.9,2.69543]
[1721011673520,1.07655326,3339.9,3339.0,0.55]
[1721011673819,1.07655326,3339.9,3339.1,0.05988551]
[1721011674124,1.18420859,3339.8,3339.2,0.55]
[1721011674489,1.18420859,3339.8,3339.3,0.04871172]
[1721011675020,1.18420859,3339.8,3339.4,0.04870692]
[1721011675351,10.7655326,3340.0,3339.3,0.0598855]
[1721011675498,9.9,3340.0,3339.4,0.60987914]
[1721011675709,9.9,3340.0,3339.4,3.35368019]
[1721011676025,9.9,3340.0,3339.4,3.29380105]
[1721011676183,9.9,3340.0,3339.4,3.78301163]
[1721011676891,9.9,3340.0,3339.5,2.69495]
[1721011677231,9.9,3340.0,3339.9,5.38938]
[1721011677527,9.9,3340.0,3339.9,5.93938]
[1721011677727,9.9,3340.0,3339.9,5.9878644]
[1721011677933,9.9,3340.0,3339.9,6.58665084]
[1721011678137,9.9,3340.0,3339.9,0.0484844]
[1721011678428,9.9,3340.0,3339.4,0.48921058]
[1721011678429,9.9,3340.0,3339.6,2.69489]
[1721011678792,9.9,3340.0,3339.4,0.48921058]
[1721011678793,9.9,3340.0,3339.7,0.04845448]
[1721011678993,9.9,3340.0,3339.3,2.6951]
[1721011679189,9.9,3340.0,3339.8,0.04844967]
[1721011679397,9.9,3340.0,3339.2,2.418]
[1721011679627,9.9,3340.0,3339.9,0.04844487]
[1721011679924,9.9,3340.0,3339.1,2.69531]
[1721011680100,9.9,3340.0,3339.2,2.69524]
[1721011680287,9.9,3340.0,3339.2,0.04852191]
[1721011680507,9.9,3340.0,3339.2,0.10840943]
[1721011680740,10.89,3340.0,3339.2,0.05988752]
[1721011680948,10.89,3340.0,3338.8,0.05988139]
[1721011681151,9.9,3340.0,3339.5,2.695]
[1721011681447,9.9,3340.0,3339.6,0.04850062]
[1721011681607,9.9,3340.0,3339.3,2.69515]
[1721011681969,9.9,3340.0,3339.7,0.04849582]
[1721011681970,10.89,3340.0,3339.7,0.04849582]
[1721011682242,10.89,3340.0,3339.0,2.6954]
[1721011682449,10.89,3340.0,3339.8,0.04849102]
[1721011682652,10.89,3340.0,3339.1,0.55]
[1721011682834,10.89,3340.0,3339.9,0.04848621]
[1721011683046,16.3643,3340.0,3338.2,5.17494]
[1721011683350,2.29743,3339.9,3338.2,2.69604]
[1721011683529,5.29743,3339.9,3338.3,2.69596]
[1721011684057,5.29743,3339.9,3338.2,2.69606]
[1721011684210,5.29743,3339.9,3338.3,2.69597]
[1721011684412,2.51707087,3339.8,3338.3,2.75586795]
[1721011684650,2.51707087,3339.8,3338.6,2.69571]
[1721011684964,3.0,3339.7,3338.6,2.75560218]
[1721011685115,13.3643,3340.0,3338.7,5.02954]
[1721011685317,10.89,3340.0,3339.0,2.6954]
[1721011685537,10.89,3340.0,3339.1,0.60988471]
[1721011685851,10.89,3340.0,3339.1,3.30521471]
[1721011686254,2.4414,3339.9,3338.8,0.05989755]
[1721011686560,2.4414,3339.9,3338.7,2.69565]
[1721011687016,2.4414,3339.9,3338.1,0.05989609]
[1721011687220,1.64214,3339.8,3338.2,0.23664961]
[1721011687414,1.64214,3339.8,3338.2,2.93269961]
[1721011687618,1.64214,3339.8,3338.1,2.69611]
[1721011687928,4.64214,3339.8,3338.3,2.69595]
[1721011688130,4.64214,3339.8,3338.6,2.69572]
[1721011688131,1.64214,3339.8,3338.6,2.69572]
[1721011688351,4.64214,3339.8,3338.6,2.69572]
[1721011688550,4.64214,3339.8,3338.7,0.04703273]
[1721011688849,2.097354,3339.7,3338.8,0.04702792]
[1721011689068,5.097354,3339.7,3338.2,2.69605]
[1721011689630,5.097354,3339.7,3338.3,0.04705195]
[1721011689971,2.2508,3339.6,3338.3,0.04705195]
[1721011690263,5.2508,3339.6,3338.0,2.69621]
[1721011690470,1.8836294,3339.5,3338.1,3.24614]
[1721011690759,4.8836294,3339.5,3338.1,0.59706157]
[1721011691061,4.8836294,3339.5,3338.1,3.24613]
[1721011691263,2.05544294,3339.4,3338.1,3.24613]
[1721011691615,5.05544294,3339.4,3338.1,3.24613]
[1721011691820,5.05544294,3339.4,3338.2,2.69605]
[1721011692015,2.05544294,3339.4,3338.4,2.69584]
[1721011692227,0.31345784,3339.3,3338.5,3.2458]
[1721011692534,0.31345784,3339.3,3338.6,2.75555415]
[1721011692726,0.31345784,3339.3,3338.7,0.55]
[1721011693156,0.31345784,3339.3,3338.8,0.04727195]
[1721011693350,0.31345784,3339.3,3338.9,0.55]
[1721011693651,0.31345784,3339.3,3339.0,0.04726234]
[1721011693951,1.55988362,3339.3,3338.0,2.69622]
[1721011694256,1.55988362,3339.3,3338.1,0.55]
[1721011694454,0.31345784,3339.3,3338.4,2.69583]
[1721011694775,0.31345784,3339.3,3338.8,2.69556]
[1721011694928,0.31345784,3339.3,3339.2,2.69525]
[1721011695128,3.52,3340.8,3339.2,5.16435]
[1721011695340,0.1171974,3342.2,3342.1,5.38582]
[1721011695580,2.2591,3344.1,3342.1,0.55]
[1721011695728,5.3491592,3344.1,3342.1,0.04707419]
[1721011696059,3.52,3344.0,3342.1,0.04707419]
[1721011696425,3.52,3344.0,3341.6,2.69331]
[1721011696750,1.72151592,3343.9,3341.9,2.69307]
[1721011697124,1.72151592,3343.9,3342.0,2.74003865]
[1721011697321,1.72151592,3343.9,3342.1,3.2429]
[1721011697527,1.72151592,3343.9,3342.0,0.04706865]
[1721011697763,1.72151592,3343.9,3341.6,2.69324]
[1721011697764,1.72151592,3343.9,3342.2,0.04705905]
[1721011697971,1.72151592,3343.9,3341.9,2.69307]
[1721011697972,1.05906751,3343.8,3342.1,0.04706385]
[1721011698188,2.3868,3343.7,3342.1,0.04706385]
[1721011698479,2.3868,3343.7,3341.1,2.69366]
[1721011698480,12.2868,3343.7,3341.1,2.69366]
[1721011698767,12.2868,3343.7,3342.2,0.04705905]
[1721011698768,3.0900592,3342.6,3342.2,0.04705905]
[1721011698927,0.30900592,3342.5,3341.2,0.55]
[1721011699263,3.30900592,3342.5,3341.3,0.04647617]
[1721011699462,2.3541,3342.4,3341.3,0.04647617]
[1721011699635,2.3541,3342.4,3340.4,6.21421]
[1721011699966,1.86531651,3342.3,3341.4,0.04647137]
[1721011700265,2.3844,3341.9,3339.6,2.69492]
[1721011700422,3.0900592,3341.2,3339.6,2.69492]
[1721011700830,3.0,3341.1,3339.6,2.69492]
[1721011701227,3.0900592,3341.2,3339.6,2.69492]
[1721011701228,3.0900592,3341.2,3340.0,2.69457]
[1721011701429,8.346,3341.8,3340.3,2.69435]
[1721011701654,0.31339452,3343.8,3340.6,2.3336]
[1721011701832,0.31339452,3343.8,3340.3,0.05986205]
[1721011701833,0.31339452,3343.8,3342.6,3.52]
[1721011702045,0.31339452,3343.8,3342.2,5.7889]
[1721011702046,0.31339452,3343.8,3343.7,2.69162]
[1721011702268,2.2903,3345.2,3343.7,6.21162]
[1721011702428,0.3130219,3345.1,3343.8,0.60979513]
[1721011703157,0.3130219,3345.1,3344.1,2.69128]
[1721011703324,0.3130219,3345.1,3344.2,0.05979512]
[1721011703526,0.26033219,3345.0,3343.9,0.0597985]
[1721011703742,0.26033219,3345.0,3344.0,0.55]
[1721011704451,0.26033219,3345.0,3344.1,0.05979849]
[1721011704767,0.26033219,3345.0,3344.0,0.55]
[1721011705371,0.26033219,3345.0,3344.0,3.30118023]
[1721011705687,0.28636541,3344.9,3344.1,2.73270684]
[1721011705955,0.28636541,3344.9,3344.2,0.60979503]
[1721011706259,0.28636541,3344.9,3344.3,0.1012323]
[1721011706978,0.3130219,3345.1,3344.4,2.69101]
[1721011707125,0.3130219,3345.1,3344.5,0.55]
[1721011707329,0.3130219,3345.1,3344.5,0.58968082]
[1721011708060,0.3130219,3345.1,3344.5,0.03968082]
[1721011708255,0.3130219,3345.1,3344.3,3.30092283]
[1721011708454,0.3130219,3345.1,3344.6,0.0396616]
[1721011708667,0.3130219,3345.1,3344.3,0.55]
[1721011708872,0.3130219,3345.1,3344.7,0.03965681]
[1721011709150,0.3130219,3345.1,3344.2,2.69119]
[1721011709349,0.3130219,3345.1,3344.8,0.03964584]
[1721011709663,0.3130219,3345.1,3344.9,0.03964105]
[1721011709966,0.1171974,3345.5,3344.3,2.69113]
[1721011710166,0.1171974,3345.5,3345.0,0.03963626]
[1721011710485,0.1171974,3345.5,3345.1,0.03963147]
[1721011710762,0.1171974,3345.5,3344.4,0.55]
[1721011710763,0.1171974,3345.5,3344.9,0.60977763]
[1721011710966,1e-08,3345.5,3345.4,2.69026]
[1721011711463,1e-08,3345.5,3345.4,3.87767633]
[1721011711687,1e-08,3345.5,3345.4,6.56793633]
[1721011711983,1e-08,3345.5,3345.4,0.58957382]
[1721011712185,1e-08,3345.5,3345.4,0.03957382]